[Event "Titled Tuesday Blitz March 15 Late 2022"]
[White "Tang, Andrew"]
[Black "Goltsev, Dmitry"]
[WhiteFideId "2059630"]
[BlackFideId "24176710"]
[WhiteElo "2584"]
[BlackElo "2273"]
[Result "1/2-1/2"]
[Round "06"]
[TimeControl "180+1"]
[Date "2022.03.15"]
[WhiteClock "0:00:07"]
[BlackClock "0:00:20"]

1. d4 {[%clk 0:02:56]}  d5 {[%clk 0:03:00]} 2. Bf4 {[%clk 0:02:56]}  Nf6 {[%clk 0:03:00]} 3. e3 {[%clk 0:02:56]}  Bf5 {[%clk 0:03:00]} 4. c4 {[%clk 0:02:56]}  e6 {[%clk 0:03:00]} 5. Nc3 {[%clk 0:02:57]}  c6 {[%clk 0:03:00]} 6. Qb3 {[%clk 0:02:57]}  Qb6 {[%clk 0:03:00]} 7. c5 {[%clk 0:02:57]}  Qxb3 {[%clk 0:03:00]} 8. axb3 {[%clk 0:02:58]}  a6 {[%clk 0:02:58]} 9. b4 {[%clk 0:02:56]}  Be7 {[%clk 0:02:51]} 10. b5 {[%clk 0:02:55]}  O-O {[%clk 0:02:47]} 11. h3 {[%clk 0:02:33]}  Ne4 {[%clk 0:02:44]} 12. Nf3 {[%clk 0:02:32]}  Nxc3 {[%clk 0:02:39]} 13. bxc3 {[%clk 0:02:31]}  cxb5 {[%clk 0:02:40]} 14. Bxb5 {[%clk 0:02:31]}  Nc6 {[%clk 0:02:41]} 15. Bxc6 {[%clk 0:02:21]}  bxc6 {[%clk 0:02:42]} 16. Ne5 {[%clk 0:02:22]}  Rfc8 {[%clk 0:02:40]} 17. g4 {[%clk 0:02:12]}  Be4 {[%clk 0:02:38]} 18. f3 {[%clk 0:02:13]}  Bg6 {[%clk 0:02:36]} 19. Nd7 {[%clk 0:02:06]}  Ra7 {[%clk 0:02:27]} 20. Nb6 {[%clk 0:02:07]}  Re8 {[%clk 0:02:24]} 21. Kd2 {[%clk 0:02:06]}  f6 {[%clk 0:02:21]} 22. Ra5 {[%clk 0:02:04]}  e5 {[%clk 0:02:21]} 23. dxe5 {[%clk 0:01:53]}  Bf7 {[%clk 0:02:08]} 24. exf6 {[%clk 0:01:50]}  Bxf6 {[%clk 0:02:09]} 25. Rha1 {[%clk 0:01:43]}  Rae7 {[%clk 0:02:01]} 26. Re1 {[%clk 0:01:23]}  Bh4 {[%clk 0:02:00]} 27. Re2 {[%clk 0:01:23]}  g5 {[%clk 0:01:59]} 28. Bd6 {[%clk 0:01:23]}  Re6 {[%clk 0:01:57]} 29. Rxa6 {[%clk 0:01:19]}  Bg6 {[%clk 0:01:53]} 30. Ra7 {[%clk 0:01:18]}  Rf6 {[%clk 0:01:52]} 31. f4 {[%clk 0:01:11]}  Be4 {[%clk 0:01:50]} 32. f5 {[%clk 0:00:44]}  Bf3 {[%clk 0:01:45]} 33. Rh2 {[%clk 0:00:44]}  h5 {[%clk 0:01:35]} 34. gxh5 {[%clk 0:00:32]}  Bxh5 {[%clk 0:01:32]} 35. Rc7 {[%clk 0:00:29]}  Rxf5 {[%clk 0:01:31]} 36. Rxc6 {[%clk 0:00:26]}  Rf1 {[%clk 0:01:31]} 37. Rc8 {[%clk 0:00:19]}  Rxc8 {[%clk 0:01:16]} 38. Nxc8 {[%clk 0:00:20]}  Ra1 {[%clk 0:01:16]} 39. Ne7+ {[%clk 0:00:19]}  Kf7 {[%clk 0:01:15]} 40. Nxd5 {[%clk 0:00:20]}  Rd1+ {[%clk 0:01:12]} 41. Kc2 {[%clk 0:00:20]}  Rxd5 {[%clk 0:01:13]} 42. e4 {[%clk 0:00:17]}  Rd1 {[%clk 0:01:11]} 43. e5 {[%clk 0:00:18]}  Ke6 {[%clk 0:01:11]} 44. c6 {[%clk 0:00:17]}  Ra1 {[%clk 0:01:08]} 45. c7 {[%clk 0:00:17]}  Ra8 {[%clk 0:00:58]} 46. Rh1 {[%clk 0:00:17]}  Bg3 {[%clk 0:00:52]} 47. Rg1 {[%clk 0:00:17]}  Bf4 {[%clk 0:00:47]} 48. Kd3 {[%clk 0:00:17]}  Be8 {[%clk 0:00:39]} 49. Kd4 {[%clk 0:00:15]}  Bd7 {[%clk 0:00:38]} 50. h4 {[%clk 0:00:15]}  gxh4 {[%clk 0:00:33]} 51. Rg6+ {[%clk 0:00:11]}  Kf5 {[%clk 0:00:32]} 52. Rf6+ {[%clk 0:00:12]}  Kg5 {[%clk 0:00:32]} 53. Rxf4 {[%clk 0:00:12]}  Ra4+ {[%clk 0:00:33]} 54. c4 {[%clk 0:00:12]}  h3 {[%clk 0:00:31]} 55. Rf2 {[%clk 0:00:09]}  Be6 {[%clk 0:00:29]} 56. Rc2 {[%clk 0:00:09]}  Kf4 {[%clk 0:00:27]} 57. Kc5 {[%clk 0:00:09]}  Kg3 {[%clk 0:00:23]} 58. Kb5 {[%clk 0:00:09]}  Ra1 {[%clk 0:00:19]} 59. Rc3+ {[%clk 0:00:05]}  Kg2 {[%clk 0:00:19]} 60. Rc2+ {[%clk 0:00:06]}  Kg3 {[%clk 0:00:19]} 61. Rc3+ {[%clk 0:00:06]}  Kg2 {[%clk 0:00:20]} 62. Rc2+ {[%clk 0:00:07]}  Kg3 {[%clk 0:00:20]} 1/2-1/2


[Site "https://www.chess.com"]

[Event "Titled Tuesday Blitz March 15 Late 2022"]
[White "Thavandiran, Shiyam"]
[Black "Yedidia, Daniel"]
[WhiteFideId "2605058"]
[BlackFideId "30905907"]
[WhiteElo "2357"]
[BlackElo "2513"]
[Result "1-0"]
[Round "06"]
[TimeControl "180+1"]
[Date "2022.03.16"]
[WhiteClock "0:00:25"]
[BlackClock "0:00:15"]

1. e4 {[%clk 0:02:57]}  e5 {[%clk 0:02:53]} 2. Bc4 {[%clk 0:02:56]}  Nf6 {[%clk 0:02:53]} 3. d3 {[%clk 0:02:57]}  Be7 {[%clk 0:02:51]} 4. Nc3 {[%clk 0:02:56]}  c6 {[%clk 0:02:51]} 5. Nf3 {[%clk 0:02:56]}  Qc7 {[%clk 0:02:48]} 6. O-O {[%clk 0:02:55]}  O-O {[%clk 0:02:49]} 7. a4 {[%clk 0:02:54]}  Rd8 {[%clk 0:02:48]} 8. Ba2 {[%clk 0:02:51]}  d5 {[%clk 0:02:48]} 9. exd5 {[%clk 0:02:51]}  cxd5 {[%clk 0:02:48]} 10. Nb5 {[%clk 0:02:51]}  Qd7 {[%clk 0:02:38]} 11. Nxe5 {[%clk 0:02:50]}  Qf5 {[%clk 0:02:38]} 12. Re1 {[%clk 0:02:24]}  Bb4 {[%clk 0:02:17]} 13. c3 {[%clk 0:02:20]}  Ba5 {[%clk 0:02:16]} 14. Nd4 {[%clk 0:02:04]}  Qh5 {[%clk 0:02:02]} 15. Qxh5 {[%clk 0:01:56]}  Nxh5 {[%clk 0:02:03]} 16. Bd2 {[%clk 0:01:34]}  Nf6 {[%clk 0:01:59]} 17. Re2 {[%clk 0:01:33]}  Nbd7 {[%clk 0:01:54]} 18. Rae1 {[%clk 0:01:26]}  Nxe5 {[%clk 0:01:44]} 19. Rxe5 {[%clk 0:01:27]}  Bc7 {[%clk 0:01:44]} 20. Re7 {[%clk 0:01:23]}  Bd6 {[%clk 0:01:45]} 21. R7e2 {[%clk 0:01:23]}  Bg4 {[%clk 0:01:44]} 22. f3 {[%clk 0:01:22]}  Bh5 {[%clk 0:01:45]} 23. Nf5 {[%clk 0:01:17]}  Bg6 {[%clk 0:01:32]} 24. Nxd6 {[%clk 0:01:15]}  Rxd6 {[%clk 0:01:33]} 25. d4 {[%clk 0:01:15]}  h6 {[%clk 0:01:31]} 26. Re7 {[%clk 0:01:14]}  Rb6 {[%clk 0:01:21]} 27. b4 {[%clk 0:01:14]}  a5 {[%clk 0:01:21]} 28. b5 {[%clk 0:01:13]}  Kf8 {[%clk 0:01:19]} 29. c4 {[%clk 0:01:04]}  Ne4 {[%clk 0:01:08]} 30. fxe4 {[%clk 0:00:56]}  Kxe7 {[%clk 0:01:09]} 31. exd5+ {[%clk 0:00:56]}  Kf8 {[%clk 0:01:07]} 32. c5 {[%clk 0:00:48]}  Rf6 {[%clk 0:01:08]} 33. d6 {[%clk 0:00:47]}  Bc2 {[%clk 0:01:01]} 34. Bd5 {[%clk 0:00:45]}  Rb8 {[%clk 0:00:48]} 35. Bxa5 {[%clk 0:00:39]}  Bxa4 {[%clk 0:00:48]} 36. Bc7 {[%clk 0:00:36]}  Re8 {[%clk 0:00:48]} 37. Rxe8+ {[%clk 0:00:36]}  Kxe8 {[%clk 0:00:49]} 38. b6 {[%clk 0:00:34]}  Bb5 {[%clk 0:00:46]} 39. h3 {[%clk 0:00:33]}  Kd7 {[%clk 0:00:40]} 40. Bxb7 {[%clk 0:00:33]}  Rf1+ {[%clk 0:00:25]} 41. Kh2 {[%clk 0:00:32]}  Rc1 {[%clk 0:00:26]} 42. Bf3 {[%clk 0:00:29]}  Ba6 {[%clk 0:00:19]} 43. b7 {[%clk 0:00:26]}  Bxb7 {[%clk 0:00:16]} 44. Bxb7 {[%clk 0:00:26]}  f5 {[%clk 0:00:15]} 45. c6+ {[%clk 0:00:25]} 1-0


[Site "https://www.chess.com"]

[Event "Titled Tuesday Blitz March 15 Late 2022"]
[White "Van den Dikkenberg, Erik"]
[Black "Vusatiuk, Vladimir"]
[WhiteFideId "1005880"]
[BlackFideId "14118610"]
[WhiteElo "2118"]
[BlackElo "2157"]
[Result "0-1"]
[Round "06"]
[TimeControl "180+1"]
[Date "2022.03.16"]
[WhiteClock "0:00:40"]
[BlackClock "0:00:33"]

1. e4 {[%clk 0:03:00]}  Nc6 {[%clk 0:02:52]} 2. d4 {[%clk 0:03:00]}  d5 {[%clk 0:02:52]} 3. e5 {[%clk 0:03:00]}  Bf5 {[%clk 0:02:52]} 4. c3 {[%clk 0:03:00]}  h6 {[%clk 0:02:52]} 5. Nf3 {[%clk 0:03:00]}  e6 {[%clk 0:02:53]} 6. Bd3 {[%clk 0:02:58]}  Bxd3 {[%clk 0:02:53]} 7. Qxd3 {[%clk 0:02:59]}  Nge7 {[%clk 0:02:53]} 8. O-O {[%clk 0:02:57]}  Qd7 {[%clk 0:02:52]} 9. b4 {[%clk 0:02:56]}  a6 {[%clk 0:02:46]} 10. a4 {[%clk 0:02:55]}  Nf5 {[%clk 0:02:36]} 11. Nbd2 {[%clk 0:02:54]}  Be7 {[%clk 0:02:35]} 12. Re1 {[%clk 0:02:41]}  g5 {[%clk 0:02:32]} 13. Bb2 {[%clk 0:02:24]}  g4 {[%clk 0:02:30]} 14. b5 {[%clk 0:02:20]}  Na5 {[%clk 0:02:26]} 15. c4 {[%clk 0:02:03]}  gxf3 {[%clk 0:02:25]} 16. Qxf3 {[%clk 0:02:02]}  dxc4 {[%clk 0:01:47]} 17. Bc3 {[%clk 0:01:51]}  Nxd4 {[%clk 0:01:41]} 18. Qg3 {[%clk 0:01:50]}  Nc2 {[%clk 0:01:11]} 19. Bxa5 {[%clk 0:01:44]}  Nxa1 {[%clk 0:01:10]} 20. Rxa1 {[%clk 0:01:38]}  axb5 {[%clk 0:01:11]} 21. axb5 {[%clk 0:01:17]}  b6 {[%clk 0:01:09]} 22. Nxc4 {[%clk 0:00:57]}  bxa5 {[%clk 0:01:08]} 23. b6 {[%clk 0:00:55]}  Qd4 {[%clk 0:01:07]} 24. Rc1 {[%clk 0:00:45]}  Bg5 {[%clk 0:00:48]} 25. Qf3 {[%clk 0:00:41]}  Bxc1 {[%clk 0:00:33]} 26. Qxa8+ {[%clk 0:00:40]}  Ke7 {[%clk 0:00:33]} 0-1


[Site "https://www.chess.com"]

[Event "Titled Tuesday Blitz March 15 Late 2022"]
[White "Vlassov, Nikolai"]
[Black "Bettalli, Francesco"]
[WhiteFideId "4103360"]
[BlackFideId "2816453"]
[WhiteElo "2407"]
[BlackElo "2216"]
[Result "1-0"]
[Round "06"]
[TimeControl "180+1"]
[Date "2022.03.16"]
[WhiteClock "0:01:03"]
[BlackClock "0:01:38"]

1. e4 {[%clk 0:03:00]}  e5 {[%clk 0:02:52]} 2. Bc4 {[%clk 0:03:00]}  Nf6 {[%clk 0:02:50]} 3. Nc3 {[%clk 0:02:58]}  Nc6 {[%clk 0:02:44]} 4. Nf3 {[%clk 0:02:55]}  Bb4 {[%clk 0:02:42]} 5. Nd5 {[%clk 0:02:54]}  Nxd5 {[%clk 0:02:41]} 6. exd5 {[%clk 0:02:52]}  Na5 {[%clk 0:02:35]} 7. Be2 {[%clk 0:02:48]}  Bd6 {[%clk 0:02:30]} 8. b4 {[%clk 0:02:38]}  Bxb4 {[%clk 0:02:29]} 9. Nxe5 {[%clk 0:02:37]}  Qf6 {[%clk 0:02:22]} 10. Bb2 {[%clk 0:02:37]}  Bd6 {[%clk 0:02:18]} 11. d4 {[%clk 0:02:28]}  b6 {[%clk 0:02:11]} 12. O-O {[%clk 0:02:27]}  O-O {[%clk 0:02:10]} 13. c4 {[%clk 0:02:24]}  c5 {[%clk 0:02:08]} 14. f4 {[%clk 0:02:10]}  cxd4 {[%clk 0:01:56]} 15. Bxd4 {[%clk 0:02:10]}  Bc5 {[%clk 0:01:56]} 16. Bxc5 {[%clk 0:02:00]}  bxc5 {[%clk 0:01:57]} 17. Qd2 {[%clk 0:01:47]}  Nb7 {[%clk 0:01:56]} 18. Rab1 {[%clk 0:01:35]}  Nd6 {[%clk 0:01:50]} 19. Bd3 {[%clk 0:01:32]}  Nf5 {[%clk 0:01:46]} 20. Bxf5 {[%clk 0:01:17]}  Qxf5 {[%clk 0:01:47]} 21. d6 {[%clk 0:01:13]}  f6 {[%clk 0:01:40]} 22. Qd5+ {[%clk 0:01:11]}  Qe6 {[%clk 0:01:39]} 23. Qxa8 {[%clk 0:01:07]}  fxe5 {[%clk 0:01:39]} 24. fxe5 {[%clk 0:01:06]}  Re8 {[%clk 0:01:38]} 25. Rb8 {[%clk 0:01:03]} 1-0


[Site "https://www.chess.com"]

[Event "Titled Tuesday Blitz March 15 Late 2022"]
[White "Xu, Yi"]
[Black "Golubev, Mikhail"]
[WhiteFideId "8605564"]
[BlackFideId "14100983"]
[WhiteElo "2471"]
[BlackElo "2374"]
[Result "1-0"]
[Round "06"]
[TimeControl "180+1"]
[Date "2022.03.16"]
[WhiteClock "0:00:22"]
[BlackClock "0:00:03"]

1. e4 {[%clk 0:03:00]}  c5 {[%clk 0:02:59]} 2. Nf3 {[%clk 0:03:00]}  d6 {[%clk 0:03:00]} 3. d4 {[%clk 0:03:01]}  cxd4 {[%clk 0:03:00]} 4. Nxd4 {[%clk 0:03:01]}  Nf6 {[%clk 0:03:00]} 5. Nc3 {[%clk 0:03:02]}  g6 {[%clk 0:02:59]} 6. Be3 {[%clk 0:03:01]}  Bg7 {[%clk 0:02:59]} 7. f3 {[%clk 0:03:02]}  Nc6 {[%clk 0:02:59]} 8. Qd2 {[%clk 0:03:02]}  O-O {[%clk 0:03:00]} 9. Bc4 {[%clk 0:03:03]}  Bd7 {[%clk 0:02:56]} 10. O-O-O {[%clk 0:03:02]}  Rc8 {[%clk 0:02:51]} 11. Bb3 {[%clk 0:03:03]}  Nxd4 {[%clk 0:02:51]} 12. Bxd4 {[%clk 0:03:02]}  b5 {[%clk 0:02:52]} 13. Nd5 {[%clk 0:02:52]}  Nxd5 {[%clk 0:02:51]} 14. Bxg7 {[%clk 0:02:52]}  Kxg7 {[%clk 0:02:51]} 15. exd5 {[%clk 0:02:53]}  a5 {[%clk 0:02:50]} 16. a3 {[%clk 0:02:53]}  b4 {[%clk 0:02:36]} 17. axb4 {[%clk 0:02:53]}  axb4 {[%clk 0:02:36]} 18. Qxb4 {[%clk 0:02:53]}  Kg8 {[%clk 0:02:36]} 19. Rhe1 {[%clk 0:02:50]}  Rc5 {[%clk 0:02:29]} 20. Re3 {[%clk 0:02:23]}  Qa8 {[%clk 0:02:23]} 21. Bc4 {[%clk 0:02:21]}  Rb8 {[%clk 0:02:19]} 22. Ra3 {[%clk 0:02:17]}  Rxb4 {[%clk 0:01:58]} 23. Rxa8+ {[%clk 0:02:16]}  Kg7 {[%clk 0:01:58]} 24. b3 {[%clk 0:02:06]}  Rb7 {[%clk 0:01:49]} 25. Rd4 {[%clk 0:01:59]}  g5 {[%clk 0:01:47]} 26. Kb2 {[%clk 0:01:42]}  h5 {[%clk 0:01:35]} 27. c3 {[%clk 0:01:39]}  Rbc7 {[%clk 0:01:23]} 28. Ra1 {[%clk 0:01:23]}  Kf6 {[%clk 0:01:19]} 29. Re1 {[%clk 0:01:22]}  h4 {[%clk 0:01:05]} 30. g3 {[%clk 0:01:15]}  h3 {[%clk 0:01:00]} 31. g4 {[%clk 0:01:12]}  Bc8 {[%clk 0:00:43]} 32. Re3 {[%clk 0:00:55]}  Ra5 {[%clk 0:00:28]} 33. b4 {[%clk 0:00:53]}  Ra8 {[%clk 0:00:24]} 34. Bb3 {[%clk 0:00:53]}  Rb8 {[%clk 0:00:21]} 35. Ba4 {[%clk 0:00:37]}  Rb6 {[%clk 0:00:20]} 36. Bc6 {[%clk 0:00:36]}  e5 {[%clk 0:00:17]} 37. Rd1 {[%clk 0:00:35]}  Bb7 {[%clk 0:00:13]} 38. Bxb7 {[%clk 0:00:34]}  Rcxb7 {[%clk 0:00:12]} 39. Ra1 {[%clk 0:00:34]}  Rb8 {[%clk 0:00:08]} 40. Ra7 {[%clk 0:00:33]}  Rb5 {[%clk 0:00:07]} 41. Rd3 {[%clk 0:00:33]}  Kg6 {[%clk 0:00:07]} 42. Rd7 {[%clk 0:00:31]}  R8b6 {[%clk 0:00:06]} 43. Rd1 {[%clk 0:00:31]}  f5 {[%clk 0:00:04]} 44. Kb3 {[%clk 0:00:25]}  fxg4 {[%clk 0:00:04]} 45. fxg4 {[%clk 0:00:25]}  e4 {[%clk 0:00:03]} 46. Rd4 {[%clk 0:00:22]}  Rb8 {[%clk 0:00:03]} 47. Rxe4 {[%clk 0:00:22]}  Rf8 {[%clk 0:00:03]} 48. Re6+ {[%clk 0:00:22]} 1-0


[Site "https://www.chess.com"]

[Event "Titled Tuesday Blitz March 15 Late 2022"]
[White "Zaksaite, Salomeja"]
[Black "Eisen, Zane"]
[WhiteFideId "12801496"]
[BlackFideId "2098750"]
[WhiteElo "1953"]
[BlackElo "2025"]
[Result "1-0"]
[Round "06"]
[TimeControl "180+1"]
[Date "2022.03.16"]
[WhiteClock "0:00:15"]
[BlackClock "0:00:04"]

1. e4 {[%clk 0:02:57]}  c5 {[%clk 0:02:51]} 2. Nf3 {[%clk 0:02:56]}  d6 {[%clk 0:02:48]} 3. d4 {[%clk 0:02:55]}  cxd4 {[%clk 0:02:45]} 4. Nxd4 {[%clk 0:02:56]}  Nf6 {[%clk 0:02:45]} 5. Nc3 {[%clk 0:02:55]}  g6 {[%clk 0:02:46]} 6. Be3 {[%clk 0:02:54]}  Bg7 {[%clk 0:02:44]} 7. f3 {[%clk 0:02:54]}  O-O {[%clk 0:02:43]} 8. Qd2 {[%clk 0:02:55]}  Nc6 {[%clk 0:02:43]} 9. O-O-O {[%clk 0:02:55]}  Bd7 {[%clk 0:02:42]} 10. g4 {[%clk 0:02:53]}  Ne5 {[%clk 0:02:37]} 11. h4 {[%clk 0:02:47]}  h5 {[%clk 0:02:35]} 12. g5 {[%clk 0:02:43]}  Ne8 {[%clk 0:02:32]} 13. Kb1 {[%clk 0:02:36]}  Nc7 {[%clk 0:02:28]} 14. Bh3 {[%clk 0:02:18]}  b5 {[%clk 0:02:23]} 15. Bxd7 {[%clk 0:02:12]}  Qxd7 {[%clk 0:02:19]} 16. Nd5 {[%clk 0:02:12]}  Nxd5 {[%clk 0:02:01]} 17. exd5 {[%clk 0:02:11]}  Nc4 {[%clk 0:02:02]} 18. Qe2 {[%clk 0:02:08]}  Rfc8 {[%clk 0:01:56]} 19. Bf2 {[%clk 0:02:00]}  Qb7 {[%clk 0:01:35]} 20. Qe4 {[%clk 0:01:25]}  a5 {[%clk 0:01:29]} 21. f4 {[%clk 0:01:24]}  a4 {[%clk 0:01:09]} 22. f5 {[%clk 0:01:18]}  Kh7 {[%clk 0:01:09]} 23. fxg6+ {[%clk 0:00:50]}  fxg6 {[%clk 0:01:09]} 24. Rhe1 {[%clk 0:00:49]}  a3 {[%clk 0:00:50]} 25. b3 {[%clk 0:00:44]}  Ne5 {[%clk 0:00:51]} 26. Ne6 {[%clk 0:00:38]}  Bh8 {[%clk 0:00:51]} 27. Bd4 {[%clk 0:00:32]}  Rc4 {[%clk 0:00:41]} 28. bxc4 {[%clk 0:00:24]}  bxc4+ {[%clk 0:00:40]} 29. Ka1 {[%clk 0:00:24]}  c3 {[%clk 0:00:08]} 30. Rb1 {[%clk 0:00:22]}  Qc8 {[%clk 0:00:07]} 31. Nf4 {[%clk 0:00:19]}  Qc4 {[%clk 0:00:04]} 32. Bxe5 {[%clk 0:00:15]}  Qxe4 {[%clk 0:00:03]} 33. Rxe4 {[%clk 0:00:15]}  Bxe5 {[%clk 0:00:04]} 34. Nd3 {[%clk 0:00:15]} 1-0


[Site "https://www.chess.com"]

[Event "Titled Tuesday Blitz March 15 Late 2022"]
[White "Zhou, Qiyu"]
[Black "Brunner, Nicolas"]
[WhiteFideId "505161"]
[BlackFideId "620246"]
[WhiteElo "1925"]
[BlackElo "2372"]
[Result "1/2-1/2"]
[Round "06"]
[TimeControl "180+1"]
[Date "2022.03.16"]
[WhiteClock "0:00:02"]
[BlackClock "0:00:11"]

1. e4 {[%clk 0:02:52]}  e5 {[%clk 0:03:00]} 2. Nf3 {[%clk 0:02:51]}  Nc6 {[%clk 0:02:59]} 3. Bb5 {[%clk 0:02:52]}  a6 {[%clk 0:02:59]} 4. Ba4 {[%clk 0:02:52]}  Nf6 {[%clk 0:02:58]} 5. O-O {[%clk 0:02:51]}  Be7 {[%clk 0:02:58]} 6. Re1 {[%clk 0:02:51]}  b5 {[%clk 0:02:57]} 7. Bb3 {[%clk 0:02:50]}  d6 {[%clk 0:02:58]} 8. c3 {[%clk 0:02:49]}  Nb8 {[%clk 0:02:57]} 9. h3 {[%clk 0:02:47]}  O-O {[%clk 0:02:56]} 10. d4 {[%clk 0:02:47]}  Nbd7 {[%clk 0:02:54]} 11. Nbd2 {[%clk 0:02:43]}  Bb7 {[%clk 0:02:53]} 12. Bc2 {[%clk 0:02:41]}  Re8 {[%clk 0:02:50]} 13. Nf1 {[%clk 0:02:40]}  Bf8 {[%clk 0:02:49]} 14. Ng3 {[%clk 0:02:40]}  g6 {[%clk 0:02:48]} 15. b3 {[%clk 0:02:34]}  a5 {[%clk 0:02:46]} 16. d5 {[%clk 0:02:34]}  c6 {[%clk 0:02:36]} 17. c4 {[%clk 0:02:33]}  Nc5 {[%clk 0:02:31]} 18. Be3 {[%clk 0:02:27]}  Nfd7 {[%clk 0:02:26]} 19. Qd2 {[%clk 0:02:19]}  bxc4 {[%clk 0:01:59]} 20. bxc4 {[%clk 0:02:18]}  Nb6 {[%clk 0:01:59]} 21. Qc3 {[%clk 0:01:57]}  Qc7 {[%clk 0:01:55]} 22. a4 {[%clk 0:01:53]}  Ba6 {[%clk 0:01:52]} 23. Nd2 {[%clk 0:01:51]}  Rec8 {[%clk 0:01:47]} 24. Bxc5 {[%clk 0:01:44]}  dxc5 {[%clk 0:01:47]} 25. Ngf1 {[%clk 0:01:34]}  cxd5 {[%clk 0:01:31]} 26. exd5 {[%clk 0:01:33]}  f5 {[%clk 0:01:31]} 27. Rxe5 {[%clk 0:01:22]}  Bg7 {[%clk 0:01:29]} 28. f4 {[%clk 0:01:21]}  Nd7 {[%clk 0:01:26]} 29. Rae1 {[%clk 0:01:19]}  Nxe5 {[%clk 0:01:13]} 30. fxe5 {[%clk 0:01:20]}  Re8 {[%clk 0:01:13]} 31. Nf3 {[%clk 0:01:17]}  Rab8 {[%clk 0:01:13]} 32. N1d2 {[%clk 0:01:02]}  Rb4 {[%clk 0:01:08]} 33. Qd3 {[%clk 0:00:51]}  Rxe5 {[%clk 0:00:40]} 34. d6 {[%clk 0:00:35]}  Rxe1+ {[%clk 0:00:40]} 35. Nxe1 {[%clk 0:00:35]}  Qd7 {[%clk 0:00:37]} 36. Qd5+ {[%clk 0:00:34]}  Kh8 {[%clk 0:00:34]} 37. Nef3 {[%clk 0:00:25]}  Rb6 {[%clk 0:00:24]} 38. Ng5 {[%clk 0:00:19]}  Bd4+ {[%clk 0:00:21]} 39. Kh1 {[%clk 0:00:13]}  h6 {[%clk 0:00:15]} 40. Nf7+ {[%clk 0:00:02]}  Kg7 {[%clk 0:00:15]} 41. Ne5 {[%clk 0:00:02]}  Qxd6 {[%clk 0:00:14]} 42. Qf7+ {[%clk 0:00:02]}  Kh8 {[%clk 0:00:14]} 43. Qe8+ {[%clk 0:00:02]}  Kg7 {[%clk 0:00:12]} 44. Qf7+ {[%clk 0:00:02]}  Kh8 {[%clk 0:00:12]} 45. Qe8+ {[%clk 0:00:02]}  Kg7 {[%clk 0:00:11]} 46. Qf7+ {[%clk 0:00:02]} 1/2-1/2


[Site "https://www.chess.com"]

[Event "Titled Tuesday Blitz March 15 Late 2022"]
[White "Zotova, Anastasia"]
[Black "Mangialardo, Tiago Carvalho"]
[WhiteFideId "34124907"]
[BlackFideId "2130718"]
[WhiteElo "1860"]
[BlackElo "2079"]
[Result "1-0"]
[Round "06"]
[TimeControl "180+1"]
[Date "2022.03.16"]
[WhiteClock "0:01:59"]
[BlackClock "0:00:03"]

1. d4 {[%clk 0:02:59]}  Nf6 {[%clk 0:03:00]} 2. Bg5 {[%clk 0:02:58]}  g6 {[%clk 0:02:55]} 3. c4 {[%clk 0:02:53]}  c5 {[%clk 0:02:51]} 4. Nc3 {[%clk 0:02:52]}  cxd4 {[%clk 0:02:40]} 5. Bxf6 {[%clk 0:02:49]}  exf6 {[%clk 0:02:39]} 6. Qxd4 {[%clk 0:02:49]}  Nc6 {[%clk 0:02:33]} 7. Qd1 {[%clk 0:02:48]}  Bg7 {[%clk 0:02:31]} 8. Nf3 {[%clk 0:02:48]}  f5 {[%clk 0:02:25]} 9. e3 {[%clk 0:02:47]}  O-O {[%clk 0:02:24]} 10. Be2 {[%clk 0:02:46]}  Qc7 {[%clk 0:02:12]} 11. O-O {[%clk 0:02:46]}  Ne5 {[%clk 0:01:56]} 12. Nd5 {[%clk 0:02:40]}  Qd8 {[%clk 0:01:46]} 13. Rb1 {[%clk 0:02:36]}  a5 {[%clk 0:01:42]} 14. b3 {[%clk 0:02:33]}  d6 {[%clk 0:01:38]} 15. Nxe5 {[%clk 0:02:29]}  Bxe5 {[%clk 0:01:25]} 16. Bf3 {[%clk 0:02:29]}  Bd7 {[%clk 0:01:16]} 17. Qc2 {[%clk 0:02:27]}  Bc6 {[%clk 0:01:13]} 18. Rfd1 {[%clk 0:02:25]}  Qh4 {[%clk 0:00:51]} 19. g3 {[%clk 0:02:24]}  Qg5 {[%clk 0:00:45]} 20. Bg2 {[%clk 0:02:23]}  Bxd5 {[%clk 0:00:36]} 21. Rxd5 {[%clk 0:02:21]}  Qe7 {[%clk 0:00:29]} 22. Rbd1 {[%clk 0:02:17]}  a4 {[%clk 0:00:15]} 23. Rb5 {[%clk 0:02:11]}  Ra7 {[%clk 0:00:07]} 24. bxa4 {[%clk 0:02:03]}  Rfa8 {[%clk 0:00:06]} 25. Rdb1 {[%clk 0:02:03]}  Rxa4 {[%clk 0:00:05]} 26. Rxb7 {[%clk 0:02:02]}  Qf6 {[%clk 0:00:02]} 27. Rb8+ {[%clk 0:02:00]}  Kg7 {[%clk 0:00:02]} 28. Rxa8 {[%clk 0:01:59]}  Rxa8 {[%clk 0:00:03]} 29. Bxa8 {[%clk 0:01:59]} 1-0


[Site "https://www.chess.com"]

[Event "Titled Tuesday Blitz March 15 Late 2022"]
[White "Araujo Sanchez, Josue"]
[Black "Rustemov, Alexander"]
[WhiteFideId "6416896"]
[BlackFideId "4119002"]
[WhiteElo "2357"]
[BlackElo "2745"]
[Result "0-1"]
[Round "07"]
[TimeControl "180+1"]
[Date "2022.03.15"]
[WhiteClock "0:01:07"]
[BlackClock "0:00:24"]

1. e4 {[%clk 0:02:56]}  e6 {[%clk 0:02:57]} 2. d3 {[%clk 0:02:55]}  d5 {[%clk 0:02:53]} 3. Nd2 {[%clk 0:02:56]}  c5 {[%clk 0:02:53]} 4. Ngf3 {[%clk 0:02:56]}  Nc6 {[%clk 0:02:54]} 5. g3 {[%clk 0:02:56]}  g6 {[%clk 0:02:55]} 6. Bg2 {[%clk 0:02:57]}  Bg7 {[%clk 0:02:55]} 7. O-O {[%clk 0:02:57]}  Nge7 {[%clk 0:02:56]} 8. Re1 {[%clk 0:02:58]}  b6 {[%clk 0:02:56]} 9. c3 {[%clk 0:02:57]}  Qc7 {[%clk 0:02:47]} 10. exd5 {[%clk 0:02:56]}  Nxd5 {[%clk 0:02:43]} 11. Nc4 {[%clk 0:02:53]}  O-O {[%clk 0:02:39]} 12. a4 {[%clk 0:02:53]}  h6 {[%clk 0:02:37]} 13. Bd2 {[%clk 0:02:50]}  Rd8 {[%clk 0:02:30]} 14. Qb3 {[%clk 0:02:47]}  Rb8 {[%clk 0:02:21]} 15. Rad1 {[%clk 0:02:45]}  Kh7 {[%clk 0:02:06]} 16. h4 {[%clk 0:02:44]}  e5 {[%clk 0:01:22]} 17. Nfxe5 {[%clk 0:02:30]}  Bxe5 {[%clk 0:01:13]} 18. Nxe5 {[%clk 0:02:29]}  Nxe5 {[%clk 0:01:13]} 19. Bxd5 {[%clk 0:02:26]}  Bb7 {[%clk 0:01:05]} 20. Rxe5 {[%clk 0:01:32]}  Qxe5 {[%clk 0:01:00]} 21. Bxf7 {[%clk 0:01:32]}  Rxd3 {[%clk 0:00:51]} 22. Bf4 {[%clk 0:01:22]}  Qe2 {[%clk 0:00:34]} 23. Rf1 {[%clk 0:01:09]}  Rbd8 {[%clk 0:00:33]} 24. h5 {[%clk 0:01:07]}  Qxh5 {[%clk 0:00:24]} 0-1


[Site "https://www.chess.com"]